bitfinex-derivatives/quotes_ETHF0:USTF0_20210705
["timestamp","ask_amount","ask_price","bid_price","bid_amount"]
[1625476060217,1.0,2281.3,2281.1,21.121217]
[1625476060366,1.0,2281.3,2281.1,18.915947]
[1625476061067,1.0,2281.3,2281.1,3.1119]
[1625476061168,1.0,2281.3,2280.9,2.20527]
[1625476061571,2.20527,2281.0,2280.9,2.20527]
[1625476061671,3.20527,2281.0,2280.9,2.20527]
[1625476061871,3.20527,2281.0,2279.6,1.24142188]
[1625476061971,3.20527,2281.0,2279.7,48.3015]
[1625476062569,3.20527,2281.0,2279.8,15.838716]
[1625476063572,6.54207,2281.0,2280.7,2.20527]
[1625476064026,6.54207,2281.0,2280.8,16.027955]
[1625476064322,11.54207,2281.0,2280.7,2.20527]
[1625476064424,6.54207,2281.0,2280.7,2.20527]
[1625476064624,6.54207,2281.0,2280.4,2.20527]
[1625476065326,6.54207,2281.0,2280.5,15.82751]
[1625476065524,2.20527,2280.6,2280.5,15.82751]
[1625476065726,3.20527,2280.6,2280.5,15.82751]
[1625476065825,2.20527,2280.6,2280.5,15.82751]
[1625476066028,3.20527,2280.6,2280.5,15.82751]
[1625476066325,2.20527,2280.6,2280.5,15.82751]
[1625476067528,2.20527,2280.6,2280.5,18.03278]
[1625476074512,1.0,2281.3,2280.5,18.03278]
[1625476074618,1.29143896,2281.6,2280.5,21.42548]
[1625476074716,1.29135315,2281.9,2280.5,21.42548]
[1625476075126,1.29123939,2282.1,2280.5,21.42548]
[1625476075577,1.29115696,2282.2,2280.5,21.42548]
[1625476075678,2.20527,2281.9,2281.8,2.20527]
[1625476075777,3.20527,2281.9,2281.8,2.20527]
[1625476076629,3.20527,2281.9,2280.5,3.3927]
[1625476077279,3.20527,2281.9,2280.6,15.870944]
[1625476077680,2.20527,2281.5,2281.4,2.20527]
[1625476078083,3.20527,2281.5,2281.4,18.061831]
[1625476079400,2.20527,2281.5,2281.4,18.061831]
[1625476081656,3.20527,2281.5,2281.4,18.061831]
[1625476082405,2.20527,2281.5,2281.4,18.061831]
[1625476082608,1.0,2281.7,2281.4,18.061831]
[1625476083657,2.20527,2281.6,2281.4,18.061831]
[1625476084959,1.0,2281.5,2281.4,18.061831]
[1625476085861,2.20527,2281.6,2281.4,18.061831]
[1625476087214,3.20527,2281.6,2281.4,18.061831]
[1625476088366,2.20527,2281.6,2281.4,18.061831]
[1625476091901,1.0,2281.7,2281.4,18.061831]
[1625476093600,1.0,2281.7,2281.4,15.856561]
[1625476093701,2.20527,2281.5,2281.4,15.856561]
[1625476093800,3.20527,2281.5,2280.9,2.20527]
[1625476094000,42.688,2281.3,2280.9,2.20527]
[1625476094100,3.3204,2281.2,2280.9,2.20527]
[1625476094603,3.3204,2281.2,2280.7,2.20527]
[1625476095203,3.3204,2281.2,2280.8,16.027115]
[1625476095704,2.20527,2280.9,2280.8,16.027115]
[1625476100211,3.20527,2280.9,2280.8,16.027115]
[1625476103466,2.20527,2280.9,2280.8,16.027115]
[1625476111230,3.20527,2280.9,2280.8,16.027115]
[1625476111730,5.95337,2280.9,2280.8,16.027115]
[1625476112337,4.95337,2280.9,2280.8,16.027115]
[1625476113243,0.38417,2280.9,2280.8,16.027115]
[1625476113335,1.0,2281.3,2280.8,16.027115]
[1625476113434,3.49969036,2281.5,2280.8,16.027115]
[1625476113535,1.0,2281.4,2280.8,16.027115]
[1625476113835,1.0,2281.4,2281.3,4.41054]
[1625476114241,1.0,2281.4,2281.3,20.455384]
[1625476114538,1.0,2281.4,2281.3,4.41054]
[1625476117393,3.49972627,2281.5,2281.3,4.41054]
[1625476117494,1.0,2281.4,2281.3,4.41054]
[1625476127104,2.29596191,2281.4,2281.3,4.41054]
[1625476130516,2.29596191,2281.4,2281.3,6.83234]
[1625476130812,1.2959949,2281.7,2281.3,6.83234]
[1625476131162,1.2959949,2281.7,2281.6,48.6008]
[1625476131513,1.2959949,2281.7,2281.4,15.853903]
[1625476131617,1.2959313,2281.8,2281.4,15.853903]
[1625476131813,1.2959313,2281.8,2281.6,15.882594]
[1625476131915,1.2959313,2281.8,2281.7,2.20527]
[1625476132016,1.81430382,2281.9,2281.7,2.20527]
[1625476132017,1.29570233,2281.9,2281.7,2.20527]
[1625476132265,1.29570233,2281.9,2281.7,17.999829]
[1625476132464,2.29570233,2281.9,2281.7,17.999829]
[1625476133817,1.29570233,2281.9,2281.7,17.999829]
[1625476133918,1.29570233,2281.9,2281.8,2.20527]
[1625476134217,1.29570233,2281.9,2281.8,18.122901]
[1625476134621,2.29570233,2281.9,2281.8,18.122901]
[1625476136827,1.29570233,2281.9,2281.8,18.122901]
[1625476137528,2.29570233,2281.9,2281.8,18.122901]
[1625476138382,1.29570233,2281.9,2281.8,18.122901]
[1625476139235,1.29531786,2282.0,2281.8,18.122901]
[1625476143893,1.0,2282.1,2281.8,18.122901]
[1625476144094,1.0,2282.1,2282.0,2.20527]
[1625476144343,2.81340679,2282.1,2282.0,2.20527]
[1625476144745,2.81340679,2282.1,2280.9,1.23892093]
[1625476144845,6.32210679,2282.1,2280.9,1.23892093]
[1625476144998,1.29545302,2281.7,2280.6,16.12733708]
[1625476145095,42.7287,2281.4,2280.6,16.12733708]
[1625476145195,3.3953,2281.3,2280.6,16.12733708]
[1625476145395,3.3953,2281.3,2280.6,1.24053708]
[1625476145645,3.3953,2281.3,2280.7,15.930135]
[1625476146262,3.3953,2281.3,2281.2,4.41054]
[1625476146750,2.3953,2281.3,2281.2,4.41054]
[1625476147352,1.0,2281.6,2281.2,20.320466]
[1625476147552,2.20527,2281.7,2281.2,20.320466]
[1625476148115,1.29543952,2281.8,2281.2,20.320466]
[1625476148216,1.29543952,2281.8,2281.7,4.41054]
[1625476148968,1.29543952,2281.8,2280.7,1.24262779]
[1625476149069,1.0,2281.7,2280.6,1.24317559]
[1625476149621,1.0,2281.7,2280.7,15.803362]
[1625476149869,2.29549706,2281.7,2280.7,15.803362]
[1625476150277,4.50076706,2281.7,2281.6,2.20527]
[1625476150882,3.20527,2281.7,2281.6,2.20527]
[1625476151334,1.0,2281.7,2281.6,2.20527]
[1625476151883,1.29543813,2281.8,2281.6,2.20527]
[1625476152495,2.29543813,2281.8,2281.6,2.20527]
[1625476153593,2.29543813,2281.8,2280.7,1.24259653]
[1625476153693,1.29560884,2281.7,2280.6,1.24097244]
[1625476153800,1.0,2281.6,2280.6,1.24097244]
[1625476154250,3.20527,2281.6,2281.5,2.20527]
[1625476155001,3.20527,2281.6,2280.6,1.24097244]
[1625476155101,6.38917,2281.6,2280.6,1.24097244]
[1625476155203,1.29587175,2281.2,2280.3,14.5846]
[1625476155301,41.3376,2281.1,2280.3,14.5846]
[1625476155401,44.5839,2281.1,2280.3,14.5846]
[1625476155501,44.5839,2281.1,2280.1,5.99988229]
[1625476155601,44.5839,2281.1,2280.4,15.939953]
[1625476155902,44.5839,2281.1,2280.2,15.932591]
[1625476156103,45.8799793,2281.1,2280.2,15.932591]
[1625476156205,45.8799793,2281.1,2280.1,1.24088229]
[1625476156305,45.8799793,2281.1,2281.0,2.20527]
[1625476156808,5.5423793,2281.1,2281.0,2.20527]
[1625476157423,5.5423793,2281.1,2280.0,1.24145469]
[1625476158024,5.5423793,2281.1,2280.1,16.051118]
[1625476158281,7.7476493,2281.1,2280.9,2.20527]
[1625476159334,6.45157,2281.1,2280.9,2.20527]
[1625476159636,7.74746767,2281.1,2280.9,2.20527]
[1625476160336,2.20527,2281.0,2280.9,2.20527]
[1625476160435,3.20527,2281.0,2280.9,2.20527]
[1625476164096,46.75167,2281.0,2280.9,2.20527]
[1625476164397,3.20527,2281.0,2280.9,2.20527]
[1625476167325,4.50117467,2281.0,2280.9,2.20527]
[1625476167719,3.20527,2281.0,2280.9,4.73377]
[1625476168045,1.0,2281.0,2280.9,4.73377]
[1625476169377,1.0,2281.0,2280.9,20.636651]
[1625476170481,2.20527,2281.1,2280.9,20.636651]
[1625476170581,3.20527,2281.1,2280.9,20.636651]
[1625476172036,2.20527,2281.1,2280.9,20.636651]
[1625476173888,1.0,2281.3,2280.9,20.636651]
[1625476174339,1.0,2281.3,2281.2,2.20527]
[1625476174740,3.50082195,2281.4,2281.2,18.150372]
[1625476174943,2.20527,2281.4,2281.2,18.150372]
[1625476176297,1.0,2281.3,2281.2,18.150372]
[1625476176498,2.20527,2281.4,2281.2,18.150372]
[1625476180272,2.29552656,2281.5,2281.2,18.150372]
[1625476180422,2.29552656,2281.5,2281.3,2.20527]
[1625476180774,1.29552656,2281.5,2281.4,15.90709]
[1625476180974,1.29547735,2281.6,2281.4,15.90709]
[1625476181273,2.29547735,2281.6,2281.4,15.90709]
[1625476181430,1.0,2281.6,2281.4,15.90709]
[1625476181926,2.29551502,2281.6,2281.4,15.90709]
[1625476182426,4.50078502,2281.6,2281.5,2.20527]
[1625476182728,4.50078502,2281.6,2281.5,18.133408]
[1625476183478,4.50078502,2281.6,2281.5,21.677308]
[1625476184135,3.20527,2281.6,2281.5,21.677308]
[1625476184435,4.5008036,2281.6,2281.5,21.677308]
[1625476185337,3.20527,2281.6,2281.5,21.677308]
[1625476185639,4.5007772,2281.6,2281.5,21.677308]
[1625476186342,3.20527,2281.6,2281.5,21.677308]
[1625476189099,1.0,2281.6,2281.5,21.677308]
[1625476191254,1.29544149,2281.8,2281.5,21.677308]
[1625476191352,2.29544149,2281.8,2281.5,21.677308]
[1625476192509,2.29544149,2281.8,2281.6,2.20527]
[1625476192821,2.29544149,2281.8,2281.7,16.039129]
[1625476193124,2.29544149,2281.8,2281.6,2.20527]
[1625476193325,1.29542131,2281.7,2281.6,2.20527]
[1625476193427,2.29542131,2281.7,2281.6,2.20527]
[1625476196842,1.0,2281.7,2281.6,2.20527]
[1625476197193,2.2954606,2281.7,2281.6,2.20527]
[1625476197902,2.2954606,2281.7,2281.6,18.029791]
[1625476198007,1.29537705,2281.8,2281.6,18.029791]
[1625476198103,1.29537705,2281.8,2281.6,20.916691]
[1625476198254,8.51940681,2281.9,2281.6,20.916691]
[1625476198353,6.70587894,2281.9,2281.6,20.916691]
[1625476198755,4.50060894,2281.9,2281.6,20.916691]
[1625476199654,3.20527,2281.9,2281.6,20.916691]
[1625476200559,3.20527,2281.9,2281.8,2.20527]
[1625476200958,3.20527,2281.9,2281.8,18.025847]
[1625476201159,1.0,2281.9,2281.8,18.025847]
[1625476206527,1.0,2282.0,2281.8,18.025847]
[1625476208483,1.29503972,2282.1,2281.8,18.025847]
[1625476208682,1.29503972,2282.1,2282.0,2.20527]
[1625476208782,1.29490347,2282.2,2282.0,2.20527]
[1625476208988,1.29490347,2282.2,2282.0,18.04796]
[1625476210455,3.49995781,2282.3,2282.0,18.04796]
[1625476210553,1.29468781,2282.3,2282.0,18.04796]
[1625476210756,1.0,2282.7,2282.0,18.04796]
[1625476210757,3.49979624,2282.6,2282.2,2.20527]
[1625476210862,3.49979624,2282.6,2282.2,4.66547]
[1625476211059,3.49979624,2282.6,2282.3,15.940092]
[1625476212276,2.20527,2282.6,2282.3,15.940092]
[1625476212777,2.20527,2282.6,2282.5,2.20527]
[1625476214030,4.49930434,2282.8,2282.5,2.20527]
[1625476214730,4.49930434,2282.8,2282.7,2.20527]
[1625476214831,3.20527,2282.8,2282.7,2.20527]
[1625476214930,3.20527,2282.8,2282.7,4.69377]
[1625476215683,4.49879344,2282.8,2282.7,4.69377]
[1625476215781,3.49879344,2282.8,2282.7,4.69377]
[1625476216084,2.20527,2282.8,2282.7,4.69377]
[1625476216186,3.20527,2282.8,2282.7,4.69377]
[1625476219939,3.20527,2282.8,2282.7,2.20527]
[1625476220243,1.0,2282.8,2282.7,2.20527]
[1625476228782,3.20527,2282.8,2282.7,2.20527]
[1625476230941,3.20527,2282.8,2282.5,2.20527]
[1625476231643,4.49665792,2282.8,2282.5,2.20527]
[1625476231992,3.20527,2282.8,2282.5,2.20527]
[1625476232393,4.4965965,2282.8,2282.5,2.20527]
[1625476232744,3.20527,2282.8,2282.5,2.20527]
[1625476232844,2.20527,2282.7,2282.5,2.20527]
[1625476232944,1.0,2282.6,2282.5,2.20527]
[1625476233344,3.1375,2282.6,2282.5,2.20527]
[1625476234351,3.1375,2282.6,2282.4,2.20527]
[1625476234449,3.1375,2282.6,2280.9,14.4235]
[1625476234849,3.1375,2282.6,2282.2,2.20527]
[1625476236556,1.0,2282.6,2282.2,4.85447]
[1625476236860,2.20527,2282.3,2282.2,4.85447]
[1625476236960,4.08847,2282.3,2282.2,4.85447]
[1625476238461,4.08847,2282.3,2282.2,2.20527]
[1625476240363,54.28247,2282.3,2282.2,2.20527]
[1625476240964,4.08847,2282.3,2282.2,2.20527]
[1625476250799,4.08847,2282.3,2282.2,18.099467]
[1625476253108,4.08847,2282.3,2282.2,2.20527]
[1625476256137,50.22227,2282.3,2282.2,2.20527]
[1625476256595,4.08847,2282.3,2282.2,2.20527]
[1625476258600,3.08847,2282.3,2282.2,2.20527]
[1625476259655,4.08847,2282.3,2282.2,2.20527]
[1625476263963,55.24087,2282.3,2282.2,2.20527]
[1625476265470,56.53447379,2282.3,2282.2,2.20527]
[1625476266730,61.53447379,2282.3,2280.9,14.4235]
[1625476267025,4.41054,2281.0,2280.9,16.62877]
[1625476267127,6.93684,2281.0,2280.9,16.62877]
[1625476267226,6.93684,2281.0,2280.9,2.20527]
[1625476267425,6.93684,2281.0,2280.9,18.176591]
[1625476267877,2.5263,2281.0,2280.9,18.176591]
[1625476268778,1.0,2281.8,2280.9,18.176591]
[1625476268878,1.29393524,2282.0,2280.9,18.176591]
[1625476268978,1.29393524,2282.0,2280.9,20.347291]
[1625476269078,2.20527,2281.5,2281.4,2.20527]
[1625476269477,2.20527,2281.5,2281.4,18.179334]
[1625476271088,4.41054,2281.5,2281.4,18.179334]
[1625476273455,7.78394,2281.5,2281.4,18.179334]
[1625476273553,7.78394,2281.5,2281.4,2.20527]
[1625476273753,8.78394,2281.5,2281.4,2.20527]
[1625476275118,8.78394,2281.5,2280.9,2.20527]
[1625476275817,8.78394,2281.5,2281.0,16.045655]
[1625476275917,42.2397,2281.1,2281.0,16.045655]
[1625476276017,43.2397,2281.1,2281.0,16.045655]
[1625476276368,43.2397,2281.1,2280.9,2.20527]
[1625476276471,43.2397,2281.1,2280.2,1.23914835]
[1625476276569,43.2397,2281.1,2280.1,1.23943199]
[1625476276869,1.0,2281.1,2280.1,1.23943199]
[1625476277069,9.07837424,2281.5,2280.1,1.23943199]
[1625476277171,2.20527,2280.4,2280.3,2.20527]
[1625476277470,2.20527,2280.4,2280.3,18.064664]
[1625476278071,1.0,2281.4,2280.3,18.064664]
[1625476278974,1.29415893,2281.6,2280.3,18.064664]
[1625476279125,2.20527,2281.4,2281.2,2.20527]
[1625476279529,2.20527,2281.4,2281.3,15.910126]
[1625476281132,4.41054,2281.4,2281.3,15.910126]
[1625476281680,5.41054,2281.4,2281.3,15.910126]
[1625476282432,5.41054,2281.4,2281.2,2.20527]
[1625476288781,5.41054,2281.4,2280.7,2.20527]
[1625476289182,2.20527,2280.8,2280.7,2.20527]
[1625476289733,2.20527,2280.8,2280.7,18.053848]
[1625476292098,2.20527,2280.8,2280.7,2.20527]
[1625476292599,2.20527,2280.8,2280.7,18.184036]
[1625476296909,2.20527,2280.9,2280.7,18.184036]
[1625476297007,2.20527,2280.9,2280.7,20.380136]
[1625476297207,2.20527,2281.6,2280.7,20.380136]
[1625476298911,1.0,2281.5,2280.7,20.380136]
[1625476299318,2.20527,2281.6,2281.4,2.20527]
[1625476299610,3.07607,2281.6,2281.4,2.20527]
[1625476300111,4.07607,2281.6,2281.4,2.20527]
[1625476300211,4.07607,2281.6,2281.4,4.71627]
[1625476300562,4.07607,2281.6,2281.5,15.931301]
[1625476300663,3.07607,2281.6,2281.5,15.931301]
[1625476301266,2.20527,2281.6,2281.5,15.931301]
[1625476312107,3.20527,2281.6,2281.5,15.931301]
[1625476317632,3.20527,2281.6,2281.5,18.535501]
[1625476317733,2.20527,2281.6,2281.5,18.535501]
[1625476317834,1.2945639,2282.0,2281.5,18.535501]
[1625476318034,1.0,2282.1,2281.5,18.535501]
[1625476319441,3.20527,2282.1,2282.0,4.41054]
[1625476328264,2.20527,2282.1,2282.0,4.41054]
[1625476328364,1.29481783,2282.3,2282.0,4.41054]
[1625476328614,1.29481783,2282.3,2282.0,20.214821]
[1625476328716,1.0,2282.5,2282.0,20.214821]
[1625476328815,2.81254332,2282.6,2282.0,20.214821]
[1625476329015,1.81254332,2282.6,2282.0,20.214821]
[1625476329216,7.35626901,2283.7,2282.5,42.8214]
[1625476329326,7.35626901,2283.7,2282.5,45.4541]
[1625476329416,1.0,2283.3,2282.5,45.4541]
[1625476329517,3.20527,2283.3,2283.2,2.20527]
[1625476330171,5.79309409,2283.3,2283.2,2.20527]
[1625476330568,4.79309409,2283.3,2283.2,2.20527]
[1625476330886,2.20527,2283.3,2283.2,2.20527]
[1625476331172,2.20527,2283.3,2283.2,18.173061]
[1625476332336,1.81008026,2283.8,2283.2,18.173061]
[1625476332933,3.36141629,2284.1,2283.2,18.173061]
[1625476333135,3.36141629,2284.1,2284.0,48.2747]
[1625476333235,3.36141629,2284.1,2284.0,50.7158]
[1625476333340,4.13715204,2284.4,2284.0,50.7158]
[1625476333436,1.80955737,2284.5,2284.0,50.7158]
[1625476333538,1.80955737,2284.5,2284.4,4.41054]
[1625476333937,5.79035195,2284.6,2284.4,4.41054]
[1625476333938,3.20527,2284.6,2284.4,20.17101]
[1625476334389,2.20527,2284.6,2284.4,20.17101]
[1625476334490,1.80654715,2285.0,2284.4,20.17101]
[1625476334598,1.8064947,2285.2,2284.4,20.17101]
[1625476334896,3.35491874,2285.5,2284.4,20.17101]
[1625476334897,1.80602341,2285.5,2284.4,20.17101]
[1625476335245,54.726,2284.5,2284.4,20.17101]
[1625476335440,0.8817,2284.9,2284.4,4.41054]
[1625476335541,2.20527,2284.5,2284.4,4.41054]
[1625476335648,3.20527,2284.5,2284.4,4.41054]
[1625476336443,3.20527,2284.5,2283.1,14.3488]
[1625476336543,6.17307,2284.5,2283.1,14.3488]
[1625476337150,45.7163,2283.7,2283.2,15.93966]
[1625476337251,4.3856,2283.6,2283.2,15.93966]
[1625476337453,4.3856,2283.6,2282.0,1.72823525]
[1625476337553,4.3856,2283.6,2283.5,2.20527]
[1625476339246,1.0,2283.6,2283.5,2.20527]
[1625476339514,2.20527,2283.7,2283.5,2.20527]
[1625476339809,3.20527,2283.7,2283.5,2.20527]
[1625476339910,2.20527,2283.7,2283.5,2.20527]
[1625476340010,2.20527,2283.7,2283.6,15.788641]
[1625476340314,2.20527,2283.7,2283.5,2.20527]
[1625476340613,3.20527,2283.7,2283.5,2.20527]
[1625476342113,1.0,2283.7,2283.5,2.20527]
[1625476342315,1.0,2283.7,2283.6,15.951587]
[1625476343568,3.20527,2283.7,2283.6,15.951587]
[1625476343665,3.20527,2283.7,2283.5,2.20527]
[1625476343766,3.20527,2283.7,2283.2,2.20527]
[1625476344521,3.20527,2283.7,2283.3,15.995198]
[1625476344927,3.20527,2283.7,2283.2,2.20527]
[1625476345019,3.20527,2283.7,2281.5,1.72655186]
[1625476345020,9.06977,2283.7,2281.5,1.72655186]
[1625476345227,4.06977,2283.7,2281.5,1.72655186]
[1625476345378,9.06977,2283.7,2281.2,14.1]
[1625476345576,2.20527,2282.5,2282.4,2.20527]
[1625476345880,2.20527,2282.5,2282.4,18.02119]
[1625476346177,2.20527,2282.5,2282.4,2.20527]
[1625476346376,1.0,2283.0,2282.4,2.20527]
[1625476346478,1.0,2283.0,2282.4,18.123226]
[1625476347578,1.0,2283.0,2282.9,2.20527]
[1625476349383,1.0,2283.0,2282.4,2.20527]
[1625476349595,2.20527,2282.5,2282.4,2.20527]
[1625476349682,3.20527,2282.5,2282.4,2.20527]
[1625476349784,5.87937,2282.5,2282.4,2.20527]
[1625476351539,5.87937,2282.5,2282.2,2.20527]
[1625476352236,5.87937,2282.5,2282.3,15.955516]
[1625476354193,5.87937,2282.5,2281.2,4.759]
[1625476354789,5.87937,2282.5,2280.8,14.2636]
[1625476354893,5.87937,2282.5,2281.3,15.823669]
[1625476355304,10.87937,2282.5,2281.3,15.823669]
[1625476355493,5.87937,2282.5,2280.8,14.2636]
[1625476355693,2.20527,2281.8,2281.7,2.20527]
[1625476355794,3.20527,2281.8,2281.7,2.20527]
[1625476357649,5.41054,2281.8,2281.7,2.20527]
[1625476362118,4.41054,2281.8,2281.7,2.20527]
[1625476362716,4.41054,2281.8,2281.7,5.21907]
[1625476363016,1.0,2282.1,2281.7,5.21907]
[1625476363166,1.0,2282.1,2281.7,21.249487]
[1625476363724,2.20527,2281.8,2281.7,21.249487]
[1625476363834,3.20527,2281.8,2281.7,21.249487]
[1625476364936,3.20527,2281.8,2281.7,5.21907]
[1625476365135,3.20527,2281.8,2281.7,2.20527]
[1625476367645,2.20527,2281.8,2281.7,2.20527]
[1625476367745,3.20527,2281.8,2281.7,2.20527]
[1625476367944,1.0,2281.8,2281.7,18.08886]
[1625476368044,2.68067565,2283.6,2281.7,18.08886]
[1625476368144,40.0725,2282.9,2281.7,21.17136]
[1625476368245,7.68067565,2283.6,2281.7,21.17136]
[1625476368368,5.8783,2283.6,2281.7,21.17136]
[1625476368460,0.8783,2283.6,2281.7,21.17136]
[1625476368660,1.80222206,2283.7,2281.7,21.17136]
[1625476368849,1.0,2282.9,2281.7,21.17136]
[1625476369800,2.20527,2282.2,2282.1,2.20527]
[1625476369903,3.20527,2282.2,2282.1,2.20527]
[1625476374322,5.71887,2282.2,2282.1,2.20527]
[1625476374977,5.71887,2282.2,2281.7,2.20527]
[1625476375534,5.71887,2282.2,2281.8,15.963722]
[1625476375885,5.71887,2282.2,2282.1,2.20527]
[1625476375984,4.71887,2282.2,2282.1,2.20527]
[1625476376285,5.71887,2282.2,2282.1,2.20527]
[1625476376636,2.20527,2282.4,2282.1,2.20527]
[1625476377136,2.20527,2282.4,2282.2,15.975919]
[1625476377889,2.20527,2282.4,2282.3,2.20527]
[1625476378088,3.20527,2282.4,2282.3,2.20527]
[1625476378238,3.20527,2282.4,2282.3,18.242179]
[1625476378639,2.20527,2282.4,2282.3,18.242179]
[1625476383954,3.20527,2282.8,2282.3,18.242179]
[1625476385012,1.0,2282.8,2282.3,18.242179]
[1625476386021,1.0,2282.8,2282.7,2.20527]
[1625476388327,2.20527,2282.9,2282.7,2.20527]
[1625476388834,1.0,2283.6,2282.7,2.20527]
[1625476389133,1.0,2283.6,2282.8,15.899118]
[1625476389983,2.20527,2283.2,2283.1,2.20527]
[1625476390084,3.20527,2283.2,2283.1,2.20527]
[1625476391396,5.57587,2283.2,2283.1,2.20527]
[1625476392047,5.57587,2283.2,2282.7,2.20527]
[1625476394002,2.20527,2282.8,2282.7,2.20527]
[1625476394099,3.20527,2282.8,2282.7,2.20527]
[1625476395100,43.01757,2282.8,2282.7,2.20527]
[1625476396507,3.20527,2282.8,2282.7,2.20527]
[1625476396608,2.20527,2282.8,2282.7,2.20527]
[1625476397308,2.20527,2282.8,2282.7,18.198357]
[1625476397608,2.20527,2283.2,2282.7,18.198357]
[1625476397708,2.20527,2283.2,2282.7,20.877457]
[1625476398057,2.20527,2283.2,2283.1,2.20527]
[1625476398159,3.20527,2283.2,2283.1,2.20527]
[1625476398759,2.20527,2283.2,2283.1,2.20527]
[1625476402024,2.20527,2283.5,2283.1,2.20527]
[1625476402125,2.20527,2283.5,2283.1,18.114441]
[1625476404079,2.20527,2283.5,2283.4,2.20527]
[1625476404428,2.20527,2283.5,2283.4,18.038902]
[1625476405030,3.20527,2283.5,2283.4,18.038902]
[1625476409641,6.30767,2283.5,2283.4,18.038902]
[1625476409840,4.1024,2283.5,2283.4,18.038902]
[1625476410143,8.51294,2283.5,2283.4,18.038902]
[1625476412194,1.0,2283.5,2283.4,18.038902]
[1625476412294,1.0,2284.1,2283.4,18.038902]
[1625476413651,44.4728,2283.7,2283.4,18.038902]
[1625476413752,47.07,2283.7,2283.4,18.038902]
[1625476413951,48.07,2283.7,2283.4,18.038902]
[1625476414152,2.20527,2283.5,2283.4,20.244172]
[1625476414253,3.20527,2283.5,2283.4,20.244172]
[1625476417925,3.20527,2283.5,2283.4,15.833632]
[1625476418275,3.20527,2283.5,2283.3,2.20527]
[1625476418575,3.20527,2283.5,2283.4,15.986276]
[1625476419228,3.20527,2283.5,2282.5,14.0093]
[1625476419531,3.20527,2283.5,2281.5,15.98336528]
[1625476419628,3.20527,2283.5,2281.5,1.73496528]
[1625476419930,3.20527,2283.5,2281.6,16.017419]
[1625476420129,2.20527,2282.7,2282.6,2.20527]
[1625476420228,4.62807,2282.7,2282.6,2.20527]
[1625476420529,5.62807,2282.7,2282.6,18.101355]
[1625476422134,7.83334,2282.7,2282.6,18.101355]
[1625476422933,7.83334,2282.7,2282.6,12.670255]
[1625476423034,7.83334,2282.7,2282.3,2.20527]
[1625476423134,7.83334,2282.7,2281.4,16.39054921]
[1625476423333,7.83334,2282.7,2281.4,14.6553]
[1625476423537,45.5981,2282.3,2281.4,14.6553]
[1625476423641,1.0,2282.2,2281.4,14.6553]
[1625476423739,3.8914,2282.2,2281.5,15.882234]
[1625476424141,2.20527,2281.9,2281.8,2.20527]
[1625476424543,2.20527,2281.9,2281.8,18.111027]
[1625476424742,3.20527,2281.9,2281.8,18.111027]
[1625476424844,3.20527,2281.9,2281.5,2.20527]
[1625476425243,2.8914,2282.2,2281.5,2.20527]
[1625476425345,3.8914,2282.2,2281.5,2.20527]
[1625476425545,3.8914,2282.2,2281.6,15.862155]
[1625476426155,2.20527,2282.0,2281.9,2.20527]
[1625476426300,3.20527,2282.0,2281.9,2.20527]
[1625476426499,3.20527,2282.0,2281.9,18.171537]
[1625476428249,5.41054,2282.0,2281.9,18.171537]
[1625476429104,5.41054,2282.0,2281.9,15.966267]
[1625476429406,5.41054,2282.0,2281.6,16.042702]
[1625476429708,5.41054,2282.0,2281.9,15.999104]
[1625476430005,5.41054,2282.0,2281.6,15.874234]
[1625476430156,3.20527,2282.0,2281.9,2.20527]
[1625476430357,3.20527,2282.0,2281.9,17.995547]
[1625476430664,3.20527,2282.0,2281.9,2.20527]
[1625476430764,2.20527,2282.0,2281.9,2.20527]
[1625476430966,2.20527,2282.0,2281.9,18.080668]
[1625476435294,1.0,2282.4,2281.9,18.080668]
[1625476435396,14.6104,2283.2,2281.9,18.080668]
[1625476435494,1.0,2283.1,2281.9,18.080668]
[1625476436290,2.20527,2282.5,2282.4,2.20527]
[1625476436643,2.20527,2282.5,2282.4,18.186791]
[1625476438292,4.41054,2282.5,2282.4,18.186791]
[1625476439647,3.7549,2283.1,2282.4,18.186791]
[1625476440300,2.20527,2282.5,2282.4,20.392061]
[1625476440400,2.20527,2282.7,2282.4,20.392061]
[1625476442753,1.0,2283.5,2282.4,20.392061]
[1625476442855,1.80904825,2283.8,2282.4,20.392061]
[1625476442953,2.80904825,2283.8,2282.4,20.392061]
[1625476443404,1.0,2283.8,2282.4,20.392061]
[1625476443504,13.9866,2284.1,2282.4,20.392061]
[1625476444003,1.0,2284.0,2282.4,20.392061]
[1625476444208,1.0,2284.0,2282.4,22.13096863]
[1625476444307,2.20527,2283.9,2283.6,2.20527]
[1625476444406,1.0,2283.8,2283.6,2.20527]
[1625476447466,1.0,2283.8,2283.7,15.985352]
[1625476449268,1.0,2283.8,2283.6,2.20527]
[1625476449367,4.258,2283.8,2283.6,2.20527]
[1625476450328,2.20527,2283.7,2283.6,2.20527]
[1625476450423,3.20527,2283.7,2283.6,2.20527]
[1625476451946,3.20527,2283.7,2283.4,2.20527]
[1625476452348,2.20527,2283.5,2283.1,2.20527]
[1625476452447,1.0,2283.4,2283.1,2.20527]
[1625476454345,2.20527,2283.2,2283.1,2.20527]
[1625476454444,6.09077,2283.2,2283.1,2.20527]
[1625476456605,3.8855,2283.2,2283.1,2.20527]
[1625476456803,2.20527,2283.5,2283.1,18.141296]
[1625476458057,3.20527,2283.5,2283.1,18.141296]
[1625476458355,3.20527,2283.5,2283.4,2.20527]